Cogmind - Beta 15 @@@ ROGUE MODE // 2025.08.13 @ 12:33:56 Player: Infomantis Result: Destroyed by G-47 Trooper with Particle Gun Performance ------------- Evolutions (1) 500 Regions Visited (6) 1200 Robots Destroyed (80) 400 Value Destroyed (1725) 1725 Prototype IDs (3) 60 Alien Tech Used (0) 0 Bonus (25) 25 TOTAL SCORE: 3910 Bonus ------- Follower Combat Kills 25 Cogmind --------- Core Integrity 0/400 Matter 172/300 Energy 280/280 System Corruption 3% Temperature Cool (9) Movement Treading (320) Ox2 Location -8/Mines Parts ------- > --- POWER (1) -------- Heavy Ion Engine > --- PROPULSION (3) --- Light Treads Aluminum Leg Aluminum Leg > --- UTILITY (3) ------ Advanced Heat Sink High-capacity Storage Unit Seismic Detector > --- WEAPON (2) ------- Rocket Launcher Katana > --- INVENTORY (20) --- Light Angular Momentum Engine Fission Core Improved Heat Sink Large Storage Unit High-capacity Matter Pod (200) Seismic Detector Seismic Detector Hacking Suite Improved Medium Laser Particle Cannon Minigun Peak State ------------ > --- POWER ------------ Light Angular Momentum Engine > --- PROPULSION ------- Light Treads Light Treads > --- UTILITY ---------- Improved Heat Sink Advanced Heat Sink High-capacity Storage Unit > --- WEAPON ----------- Improved Medium Laser Improved Assault Rifle > --- INVENTORY -------- Heavy Ion Engine Heavy Ion Engine Fission Core Light Treads Large Storage Unit High-capacity Matter Pod Seismic Detector Seismic Detector Seismic Detector Hacking Suite Particle Cannon Improved Assault Rifle Minigun Grenade Launcher Rocket Launcher Katana [Rating: 25] Favorites ----------- Power Ion Engine Engine Ion Engine Propulsion Light Treads Treads Light Treads Leg Aluminum Leg Wheel Armored Wheel Hover Unit Improved Hover Unit Utility Seismic Detector Device Seismic Detector Storage Large Storage Unit Protection Medium Armor Plating Weapon Particle Cannon Energy Gun Improved Medium Laser Energy Cannon Particle Cannon Ballistic Gun Improved Assault Rifle Launcher Grenade Launcher Special Weapon Mining Laser Slashing Weapon Katana Build | -11 -10 -10 -9 -9 -9 -8 ------- Run | Yrd Mat Min Mat Min Exi Min Slots Evolved 2 | . . . 2 . . . Power . | . . . . . . . Propulsion 1 | . . . 1 . . . Utility 1 | . . . 1 . . . Weapon . | . . . . . . . Parts Attached 60 | 8 8 4 27 4 1 8 Power 8 | 2 . . 4 . . 2 Engine 8 | 2 . . 4 . . 2 Core . | . . . . . . . Reactor . | . . . . . . . Propulsion 16 | 2 . 1 9 . . 4 Treads 8 | 2 . . 5 . . 1 Leg 2 | . . . . . . 2 Wheel 5 | . . 1 3 . . 1 Hover 1 | . . . 1 . . . Flight . | . . . . . . . Utility 16 | 2 3 2 4 3 1 1 Device 6 | 1 1 1 1 1 . 1 Storage 5 | 1 2 . 1 . 1 . Processor . | . . . . . . . Hackware . | . . . . . . . Protection 5 | . . 1 2 2 . . Artifact . | . . . . . . . Weapon 20 | 2 5 1 10 1 . 1 Energy Gun 4 | 2 . . 2 . . . Energy Cannon 3 | . 3 . . . . . Ballistic Gun 8 | . . 1 7 . . . Ballistic Cannon . | . . . . . . . Launcher 3 | . 1 . 1 . . 1 Special Weapon 1 | . 1 . . . . . Impact Weapon . | . . . . . . . Slashing Weapon 1 | . . . . 1 . . Piercing Weapon . | . . . . . . . Special Melee Weapon . | . . . . . . . Unidentified Prototypes 3 | . . . 3 . . . Parts Lost 19 | . . 5 3 1 . 10 Power 1 | . . 1 . . . . Propulsion 8 | . . 2 1 . . 5 Utility 5 | . . 1 1 1 . 2 Weapon 5 | . . 1 1 . . 3 Highest Loss Streak 5 | . . 5 1 1 . 5 To Critical Strikes . | . . . . . . . Average Backups 12 | 3 9 14 14 15 15 14 Power . | . 1 . . 1 1 2 Propulsion 1 | . . . 1 2 2 1 Utility 5 | . 3 7 6 6 6 5 Weapon 4 | . 3 5 5 6 6 5 Tool/Special . | . . . . . . . Unused Backups 19 | . 6 . 2 2 1 8 Power 1 | . . . . . . 1 Propulsion 1 | . 1 . . . . . Utility 11 | . 3 . . 2 1 5 Weapon 6 | . 2 . 2 . . 2 Tool/Special . | . . . . . . . Average Slot Usage (%) 96 | . 99 93 96 99 79 94 Engine 12 | . 13 12 11 11 11 11 Treads 21 | . 27 23 11 22 22 20 Wheel 8 | . . 1 20 11 11 8 Device 12 | . 14 11 11 11 11 19 Storage 12 | . 14 14 11 11 11 11 Protection 5 | . . . 8 10 11 1 Energy Gun 5 | . 4 . 4 11 1 10 Energy Cannon 9 | . 23 15 1 . . . Ballistic Gun 8 | . . 12 15 10 1 10 Peak Build Rating 25 | 7 11 12 20 20 20 25 Average Rating 14 | 5 9 10 17 19 14 21 On Entrance 12 | . 7 11 11 19 20 20 Naked Turns . | . . . . . . . Heaviest Build 62 | 13 34 34 42 42 62 56 Greatest Support 40 | 40 40 40 34 12 12 40 Greatest Overweight (x) 5 | . . 2 3 3 5 3 Average Overweight (x) 1 | . . . 1 2 2 2 Largest Inventory Capacity 20 | 8 15 15 20 15 20 20 Average Capacity 13 | 7 9 15 15 15 15 20 Most Carried 18 | 7 15 15 15 15 18 16 Average Carried 12 | 3 9 14 14 14 15 14 Final Capacity 20 | 8 15 15 15 15 20 20 Final Carried 16 | 7 15 12 15 15 16 11 Class Distribution -------------------- 87% | Mutant 12% | Scavenger-Mutant Dominant Class ---------------- Mutant | -10/Materials Mutant | -10/Mines Mutant | -9/Materials Mutant | -9/Mines Mutant | -9/Exiles Scavenger-Mutant | -8/Mines Resources | -11 -10 -10 -9 -9 -9 -8 ----------- Run | Yrd Mat Min Mat Min Exi Min Matter Collected 1776 | 280 182 71 503 483 38 219 Remotely . | . . . . . . . Salvage Created 2078 | 166 282 112 593 398 . 527 Parts 146 | 14 35 10 46 21 . 20 Haulers Intercepted 2 | . . . 2 . . . Recyclers Shooed 1 | . . . . . . 1 Parts Field Recycled . | . . . . . . . Retrieved Matter . | . . . . . . . Parts Self-Destructed . | . . . . . . . Prevented . | . . . . . . . Kills | -11 -10 -10 -9 -9 -9 -8 ------- Run | Yrd Mat Min Mat Min Exi Min Combat Hostiles Destroyed 53 | . 13 6 14 12 . 8 Melee 1 | . . . . . . 1 Guns 27 | . 1 . 9 12 . 5 Cannons 12 | . 6 5 1 . . . AOE 13 | . 6 1 4 . . 2 Classes Destroyed 13 | 3 4 3 2 1 . . Worker 7 | 1 1 . 4 1 . . Builder 2 | . . 1 1 . . . Tunneler 8 | 4 1 1 1 . . 1 Hauler 2 | . . . 2 . . . Recycler 4 | 1 . . . . . 3 Operator 2 | . 1 . 1 . . . Watcher 3 | . 1 . 2 . . . Swarmer 21 | . 9 3 4 5 . . Grunt 23 | . 4 1 4 6 . 8 Duelist 1 | . . . . 1 . . Sentry 6 | . . . 6 . . . Demolisher 1 | . . 1 . . . . Assembled 1 | . . 1 . . . . Best Kill Streak 7 | 2 6 3 7 4 . 5 Combat Bots Only 4 | . 3 3 4 4 . 3 Max Kills in Single Turn 3 | 1 3 1 2 2 . 1 Gunslinging . | . . . . . . . Exploded 3 | . 3 1 2 . . 1 Melee 1 | . . . . . . 1 Uniques/NPCs Destroyed . | . . . . . . . Combat | -11 -10 -10 -9 -9 -9 -8 -------- Run | Yrd Mat Min Mat Min Exi Min Hostile Shots Fired 289 | . 39 29 80 46 . 95 Missed 61 | . 11 8 18 7 . 17 Hits 228 | . 28 21 62 39 . 78 Melee 6 | . . . 4 1 . 1 Projectile 222 | . 28 21 58 38 . 77 AOE 11 | . . 11 . . . . Critical Strikes 2 | . . . . . . 2 Damage Taken 3563 | . 268 628 861 418 . 1388 Core 529 | . 70 51 55 36 . 317 Absorbed by Shields . | . . . . . . . Redirected to Shielding 3 | . . . . 3 . . Regen/Repaired (Parts) 115 | . . . 115 . . . Core Remaining (%) 75 | 100 . 51 . . . . Volleys Fired 187 | 21 22 21 54 32 . 37 Largest 2 | 2 2 2 2 2 . 2 Hottest 136 | 80 136 136 91 79 . 79 Shots Fired 350 | 42 38 40 100 63 . 67 Gun 280 | 42 10 16 89 63 . 60 Cannon 49 | . 23 22 4 . . . Launcher 20 | . 4 2 7 . . 7 Special 1 | . 1 . . . . . Kinetic 137 | . . 16 59 32 . 30 Thermal 193 | 42 34 22 34 31 . 30 Explosive 20 | . 4 2 7 . . 7 Electromagnetic . | . . . . . . . Robot Hit Streak 15 | 9 7 11 15 12 . 12 Robot Miss Streak 4 | 3 3 3 4 3 . 2 Penetration Max . | . . . . . . . Secondary Targets 3 | . . . 1 2 . . Max Gunslinging Chain 1 | . . . 1 1 . . Shots Hit Robots 228 | 30 19 21 61 43 . 54 Core Hits 129 | 7 25 12 40 15 . 30 Critical Kills . | . . . . . . . Critical Parts Destroyed 1 | . . . 1 . . . Critical Strikes 8 | . . . 3 2 . 3 Burn 7 | . . . 2 2 . 3 Destroy 1 | . . . 1 . . . Melee Attacks 7 | . . . . 6 . 1 Impact . | . . . . . . . Slashing 7 | . . . . 6 . 1 Piercing . | . . . . . . . Sneak Attacks . | . . . . . . . Combat Hostiles . | . . . . . . . Follow-up Attacks . | . . . . . . . Damage Inflicted 5390 | 318 704 572 1715 719 . 1362 Guns 2912 | 318 56 102 945 719 . 772 Cannons 675 | . 307 308 60 . . . Explosions 1736 | . 333 139 704 . . 560 Melee 30 | . . . . . . 30 Ramming 37 | . 8 23 6 . . . Kinetic 1479 | . . 102 573 395 . 409 Thermal 2108 | 318 363 308 432 324 . 363 Explosive 1736 | . 333 139 704 . . 560 Electromagnetic . | . . . . . . . Impact . | . . . . . . . Slashing 30 | . . . . . . 30 Piercing . | . . . . . . . Highest Corruption 3 | . . . 1 1 1 3 Average Corruption 1 | . . . 1 1 1 1 Corruption Purged . | . . . . . . . Corruption Blocked . | . . . . . . . Effects 18 | . . . 5 7 4 2 Message Errors 4 | . . . 1 2 1 . Matter Fused 3 | . . . 1 . 1 1 Heat Flow Errors 4 | . . . 3 . 1 . Energy Discharges 2 | . . . . 1 1 . Parts Fused 1 | . . . . 1 . . Data Loss (minor) 1 | . . . . . . 1 Alerts 2 | . . . . 2 . . Weapon Failures 1 | . . . . 1 . . Overload Shots . | . . . . . . . Overflow Damage 82 | . 40 8 26 . . 8 Projectiles 23 | . 10 8 5 . . . Explosions 59 | . 30 . 21 . . 8 Melee . | . . . . . . . Knockbacks 2 | . 1 1 . . . . Impact 2 | . 1 1 . . . . Kinetic . | . . . . . . . Secondary . | . . . . . . . Self-Inflicted Damage 91 | . . . 3 . . 88 Shots 5 | . . . . . . 5 Rammed 12 | . 7 4 1 . . . Targets Rammed 12 | . 7 4 1 . . . Kicked . | . . . . . . . Crushed . | . . . . . . . Highest Temperature 260 | 140 260 225 204 186 131 218 Average Temperature 71 | 51 91 86 54 59 74 119 Received Heat Transfer 1266 | . 60 69 240 168 . 729 Effects 1 | . . . . . . 1 Energy Bleed 1 | . . . . . . 1 Siege Activations . | . . . . . . . Martial Activations . | . . . . . . . Shielding Activations . | . . . . . . . Robots Disrupted . | . . . . . . . Combat Hostiles . | . . . . . . . Robots Corrupted . | . . . . . . . Combat Hostiles . | . . . . . . . Parts Fried . | . . . . . . . Impact Corruptions . | . . . . . . . Robots Melted . | . . . . . . . Combat Hostiles . | . . . . . . . Parts Melted 4 | 1 . 1 1 1 . . Heat Transferred 4920 | 725 680 555 1110 851 . 999 Parts Sabotaged . | . . . . . . . Parts Stolen . | . . . . . . . Parts Stripped . | . . . . . . . Power Chain Reactions . | . . . . . . . Alert | -11 -10 -10 -9 -9 -9 -8 ------- Run | Yrd Mat Min Mat Min Exi Min Maximum Alert Level 1 | . 1 . 1 . . . Low Security (%) 97 | 100 95 100 95 100 . 100 Level 1 2 | . 4 . 4 . . . Level 2 . | . . . . . . . Level 3 . | . . . . . . . Level 4 . | . . . . . . . Level 5 . | . . . . . . . High Security . | . . . . . . . Max Security . | . . . . . . . Peak Influence 223 | 10 212 126 223 113 . 72 Initial 82 | . . 66 1 82 . . Average 55 | . 53 38 93 42 . 23 Influence Increases 1787 | 30 432 187 606 290 . 242 Destroy 0b10 Robot/C 1060 | . 260 120 280 240 . 160 Destroy 0b10 Robot/NC 140 | 30 20 10 55 5 . 20 Destroy Leader 220 | . 62 20 88 30 . 20 Allied During Kill 7 | . . 7 . . . . Successful Hack 58 | . 30 . 28 . . . Select Force Hacks 60 | . 30 . 30 . . . Disable Machine 30 | . . . 30 . . . Destroy Structure 122 | . 30 15 50 . . 27 Lose Combat Pursuer 90 | . . 15 45 15 . 15 Influence Decreases 1715 | 30 261 353 400 496 5 170 Entered New Map 243 | . . 105 4 129 5 . Time Decay 1372 | 30 261 248 376 357 . 100 Lost Part 100 | . . . 20 10 . 70 Squads Dispatched 7 | . 3 . 4 . . . Investigation 5 | . 2 . 3 . . . Extermination . | . . . . . . . Reinforcement 2 | . 1 . 1 . . . Assault . | . . . . . . . Garrison . | . . . . . . . Intercept . | . . . . . . . Searches Triggered . | . . . . . . . Construction Impeded . | . . . . . . . Haulers Reinforced . | . . . . . . . Active Scanning Responses . | . . . . . . . Cargo Convoy Interrupts . | . . . . . . . Stealth | -11 -10 -10 -9 -9 -9 -8 --------- Run | Yrd Mat Min Mat Min Exi Min Distress Signals 5 | . 2 . 3 . . . Communications Jammed . | . . . . . . . Distress Signals . | . . . . . . . Times Spotted 89 | . 25 9 28 15 . 12 Peak Tracking Total 6 | . 5 3 6 3 . 6 Tactical Retreats 5 | . . 1 1 2 . 1 Traps | -11 -10 -10 -9 -9 -9 -8 ------- Run | Yrd Mat Min Mat Min Exi Min Traps Triggered 2 | . 2 . . . . . Indirectly . | . . . . . . . Trap Hack Attempts . | . . . . . . . Triggered . | . . . . . . . Disarmed . | . . . . . . . Reprogrammed . | . . . . . . . Reused . | . . . . . . . Traps Extracted . | . . . . . . . Installed . | . . . . . . . Triggered . | . . . . . . . Machines | -11 -10 -10 -9 -9 -9 -8 ---------- Run | Yrd Mat Min Mat Min Exi Min Machines Disabled 3 | . 1 . 2 . . . Max in Single Turn 1 | . 1 . 1 . . . Machines Repaired . | . . . . . . . Machines Dismantled . | . . . . . . . Machines Sabotaged . | . . . . . . . Overloaded Fab Kills . | . . . . . . . Hacking | -11 -10 -10 -9 -9 -9 -8 --------- Run | Yrd Mat Min Mat Min Exi Min Machines Accessed 20 | . 8 . 11 . 1 . Terminals 14 | . 7 . 7 . . . Fabricators . | . . . . . . . Repair Stations 2 | . . . 2 . . . Recycling Units 2 | . 1 . 1 . . . Scanalyzers 1 | . . . 1 . . . Garrison Access . | . . . . . . . Total Hacks 48 | . 18 . 29 . 1 . Successful 31 | . 11 . 19 . 1 . Failed 17 | . 7 . 10 . . . Catastrophic 3 | . 2 . 1 . . . Database Lockouts . | . . . . . . . Manual 29 | . 15 . 14 . . . Terminals 32 | . 17 . 15 . . . Fabricators . | . . . . . . . Repair Stations 7 | . . . 7 . . . Recycling Units 4 | . 1 . 3 . . . Scanalyzers 4 | . . . 4 . . . Garrison Access . | . . . . . . . Terminal Hacks 7 | . 3 . 3 . 1 . Record 1 | . . . . . 1 . Robot Analysis 1 | . 1 . . . . . Branch Access Points 1 | . 1 . . . . . Terminal Index 1 | . . . 1 . . . Locate Traps 2 | . 1 . 1 . . . Maintenance Status 1 | . . . 1 . . . Fabricator Hacks . | . . . . . . . Repair Station Hacks 5 | . . . 5 . . . Scan Component 3 | . . . 3 . . . Repair 2 | . . . 2 . . . Recycling Unit Hacks 2 | . . . 2 . . . Report Inventory 1 | . . . 1 . . . Retrieve Components 1 | . . . 1 . . . Scanalyzer 2 | . . . 2 . . . Insert Component 1 | . . . 1 . . . Analyze 1 | . . . 1 . . . Garrison Access Hacks . | . . . . . . . Unauthorized Hacks 15 | . 8 . 7 . . . Terminals 13 | . 7 . 6 . . . Operators 1 | . 1 . . . . . Skim 12 | . 6 . 6 . . . Fabricators . | . . . . . . . Repair Stations . | . . . . . . . Recycling Units 2 | . 1 . 1 . . . Tunnel 2 | . 1 . 1 . . . Scanalyzers . | . . . . . . . Garrison Access . | . . . . . . . Data Cores Recovered 1 | . . . 1 . . . Used . | . . . . . . . Hacking Detections 11 | . 5 . 6 . . . Full Trace Events 3 | . 1 . 2 . . . Feedback Events 1 | . . . 1 . . . Corruption 1 | . . . 1 . . . Feedback Blocked . | . . . . . . . Robot Schematics Acquired . | . . . . . . . Robots Built . | . . . . . . . Authchips . | . . . . . . . Time . | . . . . . . . Total Robot Build Rating . | . . . . . . . Part Schematics Acquired 1 | . . . 1 . . . Parts Built . | . . . . . . . Authchips . | . . . . . . . Time . | . . . . . . . Total Part Build Rating . | . . . . . . . Parts Repaired 2 | . . . 2 . . . Time 58 | . . . 58 . . . Parts Recycled . | . . . . . . . Recycled Matter . | . . . . . . . Retrieved Matter . | . . . . . . . Retrieved Components 9 | . . . 9 . . . Parts Scanalyzed 1 | . . . 1 . . . Part Schematics Acquired 1 | . . . 1 . . . Parts Damaged . | . . . . . . . Bothacking | -11 -10 -10 -9 -9 -9 -8 ------------ Run | Yrd Mat Min Mat Min Exi Min Used RIF Installer . | . . . . . . . Robots Hacked . | . . . . . . . Non-combat . | . . . . . . . Combat . | . . . . . . . Robot Hacks Applied . | . . . . . . . Relay Couplers Released . | . . . . . . . Fabnet Peak Effective % . | . . . . . . . Robots Rewired . | . . . . . . . Allies Hacked . | . . . . . . . Hacks Repelled . | . . . . . . . Allies | -11 -10 -10 -9 -9 -9 -8 -------- Run | Yrd Mat Min Mat Min Exi Min Total Allies 4 | . . 3 . 1 . . Largest Group 3 | . . 3 . 1 1 . Highest-Rated Group 40 | . . 40 . 31 31 . Highest-Rated Ally 31 | . . 16 . 31 31 . Total Orders . | . . . . . . . Ally Attacks 7 | . . 7 . . . . Total Damage 86 | . . 86 . . . . Kills 2 | . . 2 . . . . Allies Corrupted . | . . . . . . . Allies Melted . | . . . . . . . Intel | -11 -10 -10 -9 -9 -9 -8 ------- Run | Yrd Mat Min Mat Min Exi Min Active Infowar (turns) 4933 | 112 1548 555 1191 983 406 138 Seismic 4933 | 112 1548 555 1191 983 406 138 Robot Analysis Total 1 | . 1 . . . . . Derelict Logs Recovered 1 | . . . . 1 . . Drone Launches . | . . . . . . . Drone Recoveries . | . . . . . . . Exploration | -11 -10 -10 -9 -9 -9 -8 ------------- Run | Yrd Mat Min Mat Min Exi Min Turns Passed 5318 | 220 1548 653 1261 983 406 247 Spaces Moved 3001 | 86 683 375 815 651 316 75 Core 3 | 3 . . . . . . Treads 1077 | 83 683 308 . . . 3 Legs . | . . . . . . . Wheels 1921 | . . 67 815 651 316 72 Hover . | . . . . . . . Flight . | . . . . . . . Fastest Speed 50 | 50 160 120 83 120 120 145 Average Speed 135 | 156 160 152 111 129 123 148 Slowest Speed 240 | 160 160 160 135 135 165 240 Overloaded Moves . | . . . . . . . Propulsion Burnouts . | . . . . . . . Robots Hopped . | . . . . . . . Potential Cave-ins . | . . . . . . . Cave-ins Triggered . | . . . . . . . Exploration Rate (%) 56 | 8 81 66 63 98 60 21 Regions Visited 6 Branch Regions 4 Pre-discovered Areas 5 | . 2 . 1 1 1 . Known Exits Taken 4 | . 1 1 1 1 . . Unknown Exits Taken 2 | 1 . . . . 1 . Scrap Searched 3 | . . 1 . 2 . . Spaces Dug 15 | . 1 . . . . 14 Terrain Destroyed 166 | . 35 18 56 . . 57 Melee . | . . . . . . . Projectile 1 | . 1 . . . . . AOE 165 | . 34 18 56 . . 57 Terrain Rammed . | . . . . . . . Walls Destroyed . | . . . . . . . Machines Disabled . | . . . . . . . Actions | -11 -10 -10 -9 -9 -9 -8 --------- Run | Yrd Mat Min Mat Min Exi Min Total 3891 | 126 1095 412 1068 718 333 139 Wait 498 | 6 342 4 125 16 . 5 Move 2995 | 85 682 374 814 650 315 75 Hop . | . . . . . . . Pick Up 47 | 6 15 . 13 4 5 4 Fast Attach 27 | 7 5 1 11 2 . 1 Attach 18 | . . 3 4 . 2 9 Detach . | . . . . . . . Swap 54 | 1 10 5 23 3 6 6 Drop 46 | . 12 . 23 5 5 1 Fire 187 | 21 22 21 54 32 . 37 Melee 7 | . . . . 6 . 1 Ram 1 | . . . 1 . . . Kick . | . . . . . . . Crush 11 | . 7 4 . . . . Escape Stasis . | . . . . . . . Rewire . | . . . . . . . Trap . | . . . . . . . Miscellaneous . | . . . . . . . Route ------- -11/Scrapyard -10/Materials (discovered 3 exits: *Mat x2 / *Min) -10/Mines (discovered 3 exits: *Mat x2 / *Sub) -9/Materials (discovered 5 exits: *Mat x3 / *Min x2) -9/Mines (discovered 3 exits: *Mat x2 / *Exi) -9/Exiles -8/Mines (discovered 1 exit: *Mat) History --------- Turn | Location | Event 4 | -11/Scrapyard | Discovered new exit (range 15) 221 | -11/Scrapyard | Entered Materials 331 | -10/Materials | Build established: Mutant 484 | -10/Materials | Discovered new exit (range 8) 632 | -10/Materials | Identified exit to Mines 910 | -10/Materials | Learned location of 2 exits from Subcaves 948 | -10/Materials | Learned 4 Recycling zone layouts 1007 | -10/Materials | Learned Storage trap positions 1008 | -10/Materials | Learned 4 Recycling zone layouts 1009 | -10/Materials | Learned location of 2 exits from Mines 1011 | -10/Materials | Learned 2 Mines zone layouts 1148 | -10/Materials | Discovered new exit (range 16) 1220 | -10/Materials | Learned location of Recycling (-8) 1242 | -10/Materials | Learned Materials stockpile data 1498 | -10/Materials | Discovered new exit (range 16) 1769 | -10/Materials | Entered Mines 1770 | -10/Mines | Identified exit to Materials 1770 | -10/Mines | Identified exit to Subcaves 1799 | -10/Mines | Discovered exit to Materials (range 8) 1992 | -10/Mines | Assisted by bots powering up and referring to "LRC-V3" 2283 | -10/Mines | Assembled infested the area 2348 | -10/Mines | Lost 5 parts (1p2n1u1w) 2422 | -10/Mines | Entered Materials 2422 | -9/Materials | Evolved 2 slots: Propulsion x1, Utility x1 2423 | -9/Materials | Identified exit to Mines 2471 | -9/Materials | Repaired Grenade Launcher 3031 | -9/Materials | Repaired Med. Armor Plating 3382 | -9/Materials | Discovered new exit (range 3) 3404 | -9/Materials | Learned Storage interactive machine intel 3450 | -9/Materials | Identified exit to Materials 3506 | -9/Materials | Learned Materials stockpile data 3519 | -9/Materials | Learned Storage trap positions 3522 | -9/Materials | Learned 4 Recycling zone layouts 3524 | -9/Materials | Learned location of 1 exit from Storage 3560 | -9/Materials | Learned Storage emergency access door positions 3683 | -9/Materials | Entered Mines 3716 | -9/Mines | Received a Rocket Launcher from a helpful Derelict 3875 | -9/Mines | Excavation squad dispatched 3875 | -9/Mines | A large section of the Mines collapsed 4036 | -9/Mines | Discovered exit to Materials (range 7) 4294 | -9/Mines | Discovered exit to Materials (range 9) 4346 | -9/Mines | Escorted by a lone wolf Derelict 4348 | -9/Mines | Identified exit to Exiles 4366 | -9/Mines | Learned location of Storage (-8) 4431 | -9/Mines | Build established: Scavenger-Mutant 4515 | -9/Mines | Deemed a non-threat by the Exiles lab entrance 4666 | -9/Mines | Entered Exiles 4666 | -9/Exiles | Accompanied by 1 ally 4684 | -9/Exiles | Discovered new exit (range 15) 4699 | -9/Exiles | Met 8R-AWN 4720 | -9/Exiles | Met EX-HEX 4789 | -9/Exiles | Met EX-DEC 4790 | -9/Exiles | Build established: Mutant 4809 | -9/Exiles | Visited The Gauntlet 4877 | -9/Exiles | Learned location of Zion (-6) 5072 | -9/Exiles | Entered Mines 5117 | -8/Mines | Discovered exit to Materials (range 9) 5127 | -8/Mines | Lost 3 parts (2n1u) 5225 | -8/Mines | Core integrity fell below 50% 5306 | -8/Mines | Core integrity fell below 20% 5319 | -8/Mines | Destroyed by G-47 Trooper with Particle Gun Last Messages --------------- 05291_ B-36 Bruiser suffers critical hit (Burn). 05291_ Com. Wheel destroyed. 05291_ System corrupted by crushing effect (+2). 05294_ Lgt. Treads destroyed. 05298_ System corrupted: Matter fused (-5). 05298_ T-07 Excavator destroyed. 05300_ G-47 Trooper destroyed. 05303_ B-36 Bruiser heat short circuits Lgt. Treads. 05304_ The unstable cave ceiling collapses. 05305_ U-05 Engineer builds a Wall. 05306_ G-47 Trooper destroyed. 05306_ Grenade Launcher destroyed. 05306_ Destroyed Grenade Launcher. 05307_ Imp. Assault Rifle destroyed. 05309_ The unstable cave ceiling collapses. 05309_ U-05 Engineer builds a Wall. 05312_ G-47 Trooper destroyed. 05314_ U-05 Engineer builds a Wall. 05316_ R-06 Scavenger destroyed. 05317_ The unstable cave ceiling collapses. Map ----- +----------------------------------------------------+ | ?????????????????????????????????????? | | ?????????????????????????????????????? | | ?????????????????????????????????????? | | ?????????????????????????????????????? | | ?????????????????????????????????????? | | ?????????????????????????????????????? | | ?????????????????????????????????????? | | ?????????????????????????????????????? | | ?????????????????????????????????????? | | ?????????????????????????????????????? | | ?????????????????????????????????????? | | ?????????????????????????????????????? | | ?????????????????????????????????????? | | ????????????????????######???????????? | | ????????????????????# ????????????? | | ?????????????? ?????# ?????????????? | | ?????????????# ????# #?????????????? | | ????????????## ???# #?????????????? | | ????????????# ### #?????????????? | | ???????????# %u #?????????????? | | ???????????# #### ????????????? | | ????????????# ???# b ????????????? | | ?????????????????# ????????????? | | ?????????????????# %g ##??????????? | | ?????????????????# ##?????????? | | ?????????????????# # @ #?????????? | | ?????????????????## # % #?????????? | | ??????????????????## ! * ##????????? | | ??????????????????# %g ##???????? | | ??????????????????# = #???????? | | ??????????????????## #???????? | | ???????????????????# ##???????? | | ?????????????####?? # ##????????? | | ????????????## ###### ##?????????? | | ???????????## #### ##??????????? | | ############ ## ##???????????? | | #????????????? | | #????????????? | | ???## #### #????????????? | | ?????????# ##????????????? | | ?????????## ##?????????????? | | ??????????## #####??????????????? | | ???????????# ##??????????????????? | | ???????????# ##???????????????????? | | ???????????# ##????????????????????? | | ???????????# ##?????????????????????? | | ???????????# #??????????????????????? | | ???????????# ##?????????????????????? | | ??????????## ##????????????????????? | | ?????????## ##???????????????????? | +----------------------------------------------------+ Best States ------------- Heat Dissipation 61 Energy Generation 14 Energy Capacity 280 Matter Stores 300 Matter Capacity 300 Sight Range 16 Terrain Scan Density 10 Armor Coverage 225 Core Shielding 20 Evasion (%) 43 Recoil Reduction 2 Item Schematics ----------------- Seismic Detector | -9/Materials | Scanalyzed Robot Schematics ------------------ None Fabricated ------------ Nothing Repaired ---------- Grenade Launcher | 60% | -9/Materials Med. Armor Plating | 24% | -9/Materials Alien Tech Used ----------------- None Achievements -------------- None Challenges ------------ None Game ------ Seed LargeBeamConstruct Manual? 0 Play Time 00:35:16 Cumulative 577.6 hours Start 2025.08.13 @ 11:52:39 End 2025.08.13 @ 12:33:56 Sessions 1 Manual Loads 0 Difficulty Rogue Special Mode None Game No. 330 Rogue 305 Adventurer 7 Explorer 18 Win Type - Total 47 Types 30/0/8/2/0/1/1/3/0/2 Lore% 95 Gallery% 91 Achievement% 82 Wizard Run 0 Options --------- Layout 0 ASCII 0 Keyboard 0 Movement Numpad Keybinds 0 Fullscreen 1 Font 12/Smallcaps Map View 83x54 Zoom Use 0% Tactical HUD 1 Map Filters NONE Filters NONE Steam 1 RUN: 26444dc0-6d5e-4105-aaaa-bb862839d084